fUSD/lending_fUSD_20241026
["ID","MTS","AMOUNT","RATE_DAILY","PERIOD"]
[340854976,1729948237848,-218.31843348,0.00040279,31]
[340854977,1729948237857,-290.06480551,0.00040279,31]
[340854978,1729948237866,-946416.88730752,0.0004028,2]
[340855036,1729948239746,-241516.73252706,0.0004028,2]
[340855038,1729948239756,-20684.95488304,0.0004028,2]
[340855185,1729948245596,-268.094,0.0004017,15]
[340855187,1729948361701,156.65,0.00015342,2]
[340855191,1729948952069,161.19,0.00015342,2]
[340855194,1729949190334,250.0,0.00015,2]
[340855195,1729949235879,279.65219664,0.00015,15]
[340855196,1729949278320,2000.0,0.00013,15]
[340855197,1729949283923,342124.76673178,0.00015,2]
[340855198,1729949313731,15668.04872634,0.000129,2]
[340855211,1729949431983,-372.57,0.000264,2]
[340855212,1729949432058,-210.5942724,0.000264,2]
[340855213,1729949432067,-952.25,0.00036996,2]
[340855214,1729949432076,-226.06086502,0.00038839,2]
[340855217,1729949437813,-23673.93913498,0.00038839,2]
[340855218,1729949437822,-291.99939005,0.00038888,2]
[340855219,1729949437832,-291.99939004,0.00038926,2]
[340855220,1729949437841,-151.56,0.00038989,2]
[340855221,1729949437850,-250.0,0.00039026,120]
[340855222,1729949437860,-150.0,0.00039035,7]
[340855223,1729949437873,-282.62,0.00039046,2]
[340855224,1729949437883,-800.0,0.000391,2]
[340855225,1729949437892,-200.0,0.00039168,2]
[340855226,1729949437901,-952.25,0.0003926,2]
[340855227,1729949437911,-239.92,0.00039289,2]
[340855228,1729949437920,-418.75,0.00039345,2]
[340855229,1729949438034,-200.0,0.00039589,2]
[340855230,1729949438043,-272.01,0.00039882,2]
[340855231,1729949438052,-5000.0,0.0004,30]
[340855232,1729949438061,-5919.14516425,0.0004,7]
[340855233,1729949438070,-20599.6469,0.00040015,2]
[340855234,1729949438080,-403.9164,0.0004008,2]
[340855235,1729949438089,-2671.6162,0.0004008,2]
[340855236,1729949438098,-1000.0,0.0004008,2]
[340855237,1729949438107,-262.3626,0.0004008,2]
[340855238,1729949438116,-18760.0528,0.0004008,2]
[340855239,1729949438125,-22557.5762,0.0004008,2]
[340855240,1729949438135,-1000.0,0.0004008,2]
[340855241,1729949438144,-480.6291,0.0004008,2]
[340855242,1729949438153,-2500.0,0.0004008,2]
[340855244,1729949438162,-109094.29864365,0.00040115,2]
[340855245,1729949438171,-168.69631345,0.0004017,28]
[340855247,1729949438180,-319.56255355,0.0004017,2]
[340855249,1729949438189,-692.771,0.00040173,57]
[340855251,1729949438198,-3203.1287,0.0004018,2]
[340855253,1729949438207,-26179.2742,0.0004018,2]
[340855255,1729949438216,-504.2148,0.0004018,2]
[340855257,1729949438225,-245000.0,0.0004018,2]
[340855258,1729949438238,-137928.070417,0.0004027,8]
[340855260,1729949438248,-207.19172636,0.00040279,31]
[340855262,1729949438256,-502.82290344,0.00040279,31]
[340855264,1729949438266,-168.98186808,0.00040279,31]
[340855266,1729949438276,-80781.85400586,0.0004028,2]
[340855268,1729949438288,-64654.7059046,0.0004028,2]
[340855270,1729949438297,-90809.24713982,0.0004028,2]
[340855272,1729949438311,-40750.444,0.0004028,2]
[340855274,1729949438322,-37616.033428,0.0004028,2]
[340855358,1729949439936,-238.00755861,0.00040191,2]
[340855360,1729949439946,-93025.96284228,0.0004028,2]
[340855362,1729949439955,-51723.0264062,0.00040326,8]
[340855365,1729949439964,-405.6174,0.00040336,2]
[340855367,1729949439974,-100000.0,0.00040336,2]
[340855369,1729949439983,-167.32,0.00040373,2]
[340855371,1729949439992,-428.25,0.00040653,2]
[340855373,1729949440001,-4310.25220052,0.00040991,8]
[340855374,1729949440011,-282.62,0.00040998,2]
[340855376,1729949440020,-3364.0,0.00041001,2]
[340855379,1729949440030,-1912.0,0.00041001,2]
[340855381,1729949440039,-810.0,0.00041001,2]
[340855383,1729949440048,-1264.0,0.00041001,2]
[340855385,1729949440058,-1085.0,0.00041001,2]
[340855387,1729949440067,-151.613,0.00041001,2]
[340855389,1729949440075,-813.0,0.00041001,2]
[340855391,1729949440084,-567.834,0.00041001,2]
[340855393,1729949440093,-1256.11,0.00041001,2]
[340855395,1729949440103,-456.183,0.00041001,2]
[340855397,1729949440112,-461.883,0.00041001,2]
[340855399,1729949440121,-4310.25220052,0.00041086,8]
[340855400,1729949440130,-4310.25220052,0.0004109,8]
[340855402,1729949440139,-151.41,0.00041096,2]
[340855405,1729949440149,-1000.0,0.00041096,120]
[340855407,1729949440160,-5913.0,0.000411,3]
[340855408,1729949440169,-3308.44527386,0.000411,2]
[340855410,1729949440178,-952.25,0.00041524,2]
[340855411,1729949440187,-1000.0,0.00041644,120]
[340855413,1729949440196,-641.0,0.000417,2]
[340855415,1729949440205,-4000.0,0.00042,2]
[340855417,1729949440214,-1050.0,0.00042,2]
[340855418,1729949440223,-11528.0,0.000421,5]
[340855420,1729949440236,-1000.0,0.00042192,120]
[340855422,1729949440246,-172.03,0.00042339,2]
[340855423,1729949440254,-1133.79594953,0.00042417,5]
[340855425,1729949440263,-319.56255355,0.00042473,2]
[340855426,1729949440272,-1586.34371853,0.0004274,120]
[340855428,1729949440282,-282.62,0.0004295,2]
[340855430,1729949440291,-4000.0,0.00043,3]
[340855431,1729949440300,-554.04837378,0.0004305,30]
[340855433,1729949440311,-9581.339605,0.000431,2]
[340855435,1729949440320,-150.0,0.00043168,15]
[340855436,1729949440329,-879.77612175,0.00043178,5]
[340855438,1729949440338,-269.96122299,0.00043178,2]
[340855440,1729949440347,-1768.78241366,0.00043178,2]
[340855441,1729949440356,-300.0,0.000432,30]
[340855443,1729949440366,-353.139438,0.000432,54]
[340855445,1729949440375,-183.27,0.00043204,2]
[340855447,1729949440384,-158.20942065,0.00043273,7]
[340855449,1729949440393,-500.0,0.00043273,10]
[340855450,1729949440402,-22083.36691197,0.00043278,2]
[340855452,1729949440412,-157.0,0.00043278,7]
[340855454,1729949440421,-86545.31033714,0.00043278,2]
[340855456,1729949440432,-20684.95488304,0.00043278,2]
[340855458,1729949440447,-1045.00000012,0.00043278,2]
[340855460,1729949440458,-457.4999994,0.00043278,2]
[340855462,1729949440469,-1451.0177872,0.00043278,2]
[340855463,1729949440480,-952.09603091,0.00043278,2]
[340855510,1729949442891,-954973.61196687,0.00043278,2]
[340855511,1729949442901,-10013.85372364,0.00043278,2]
[340855512,1729949442910,-7607.99488747,0.00043278,2]
[340855513,1729949442921,-150.2392989,0.00043278,2]
[340855514,1729949442930,-346.0,0.00043278,20]
[340855515,1729949442940,-269.84,0.00043278,2]
[340855516,1729949442949,-212.33778622,0.00043278,7]
[340855517,1729949442959,-7736.0785489,0.00043278,7]
[340855518,1729949442968,-4391.9614839,0.00043278,7]
[340855519,1729949442978,-14528.2739184,0.00043278,2]
[340855520,1729949442987,-3891.27314273,0.00043278,2]
[340855521,1729949442996,-10055.06102876,0.00043278,7]
[340855522,1729949443007,-1807.61452829,0.00043278,2]
[340855523,1729949443016,-5100.96207492,0.00043278,7]
[340855524,1729949443025,-11649.45597829,0.00043278,2]
[340855525,1729949443035,-1960.93252604,0.00043278,2]
[340855526,1729949443044,-7729.04083942,0.00043278,2]
[340855527,1729949443054,-5054.14217286,0.00043278,2]
[340855528,1729949443063,-3195.35599753,0.00043278,2]
[340855529,1729949443072,-1549.41601206,0.00043278,2]
[340855530,1729949443083,-151.38523291,0.00043278,2]
[340855531,1729949443092,-150.67115812,0.00043278,2]
[340855532,1729949443101,-7519.5294133,0.00043278,2]
[340855533,1729949443110,-2929.12239694,0.00043278,2]
[340855534,1729949443138,-214.53702846,0.00042278,14]
[340855535,1729949443148,-486.34730131,0.00043278,2]
[340855536,1729949443161,-2758.66640775,0.00043278,2]
[340855537,1729949443177,-15972.77316047,0.00043278,2]
[340855538,1729949443223,-475.5653201,0.00043278,2]
[340855543,1729949445756,-1980.0,0.00041001,2]
[340855544,1729949445766,-156.0,0.00041181,7]
[340855545,1729949445776,-159204.66338552,0.00043278,2]
[340855551,1729949448782,150.0,0.00017433,2]
[340855552,1729949490990,150.0,0.00017433,2]
[340855554,1729949532342,150.0,0.00017433,2]
[340855555,1729949582035,300.0,0.00019725,2]
[340855557,1729949614852,163.43,0.00015342,2]
[340855566,1729950002692,150.0,0.00015342,2]
[340855567,1729950002886,150.0,0.00015342,2]
[340855568,1729950003088,172.01796901,0.00015342,2]
[340855580,1729950631886,-163.43,0.00035616,2]
[340855581,1729950631896,-636.57,0.00037874,2]
[340855582,1729950631907,-330.16,0.00037874,2]
[340855584,1729950631917,-23900.0,0.00039614,2]
[340855586,1729950631927,-428.25,0.00039775,2]
[340855588,1729950631936,-200.0,0.00039847,2]
[340855590,1729950631945,-250.0,0.0003991,120]
[340855592,1729950631955,-6744.83,0.00039915,2]
[340855594,1729950631965,-196.5,0.00039927,2]
[340855596,1729950631975,-150.0,0.00039949,7]
[340855597,1729950631985,-250.0,0.00039959,2]
[340855598,1729950631995,-507.76,0.00039998,2]
[340855599,1729950632004,-1000.0,0.00040014,2]
[340855600,1729950632018,-879.77612175,0.00040014,5]
[340855601,1729950632028,-767.636,0.00040014,56]
[340855602,1729950632037,-170.105,0.00040014,56]
[340855603,1729950632046,-150.0,0.00040014,4]
[340855604,1729950632057,-1154.7393,0.00040015,2]
[340855605,1729950632067,-4385.93725914,0.00040015,2]
[340855606,1729950632079,-95614.06274086,0.00040015,2]
[340855607,1729950632091,-26179.2742,0.00040015,2]
[340855608,1729950632105,-500.0,0.00040015,2]
[340855609,1729950632114,-150.0,0.00040061,2]
[340855610,1729950632124,-188.41,0.00040105,2]
[340855611,1729950632133,-966.73,0.00040138,2]
[340855612,1729950632143,-1000.0,0.00040961,2]
[340855613,1729950632152,-500.0,0.00041,2]
[340855618,1729950632276,-567.834,0.00041038,2]
[340855619,1729950632286,-456.183,0.00041038,2]
[340855620,1729950632296,-813.0,0.00041038,2]
[340855621,1729950632306,-1256.11,0.00041038,2]
[340855622,1729950632315,-561.733,0.00041038,2]
[340855623,1729950632325,-1980.0,0.00041038,2]
[340855624,1729950632335,-1912.0,0.00041038,2]
[340855625,1729950632344,-3364.0,0.00041038,2]
[340855626,1729950632357,-810.0,0.00041038,2]
[340855627,1729950632366,-1252.0,0.00041038,2]
[340855628,1729950632376,-150.0,0.00041038,2]
[340855629,1729950632385,-151.613,0.00041038,2]
[340855630,1729950632395,-461.883,0.00041038,2]
[340855631,1729950632404,-150.507,0.00041038,2]
[340855632,1729950632413,-1085.0,0.00041038,2]
[340855633,1729950632422,-453.15974191,0.0004105,5]
[340855634,1729950632433,-168.1,0.00041068,120]
[340855635,1729950632442,-151.45,0.00041096,2]
[340855636,1729950632452,-3308.44527386,0.000411,2]
[340855637,1729950632462,-5913.0,0.000411,3]
[340855638,1729950632472,-162.38,0.00041192,2]
[340855639,1729950632482,-1000.0,0.00042,2]
[340855640,1729950632491,-2500.0,0.00042,2]
[340855641,1729950632501,-156.43,0.00042073,2]
[340855642,1729950632511,-11528.0,0.000421,5]
[340855643,1729950632520,-966.73,0.00042402,2]
[340855644,1729950632529,-169.67,0.00042795,2]
[340855645,1729950632539,-7092.96340723,0.0004285,2]
[340855646,1729950632552,-1314.27320676,0.0004285,2]
[340855647,1729950632564,-1353.32,0.0004285,2]
[340855648,1729950632576,-1600.75449853,0.0004285,2]
[340855649,1729950632588,-8241.92154979,0.0004285,2]
[340855650,1729950632598,-2947.07845021,0.00043,30]
[340855651,1729950632610,-3381.685964,0.00043,30]
[340855652,1729950632622,-13671.23558579,0.00043,30]
[340855653,1729950632632,-554.04837378,0.0004305,30]
[340855654,1729950632641,-319.56255355,0.00043078,2]
[340855655,1729950632651,-214.53702839,0.00043078,15]
[340855656,1729950632660,-4345.84866773,0.000431,2]
[340855657,1729950632672,-546.70831491,0.000431,2]
[340855658,1729950632684,-4688.78262236,0.000431,2]
[340855659,1729950632693,-150.0,0.00043127,15]
[340855660,1729950632703,-19451.9189467,0.00043158,9]
[340855661,1729950632714,-121574.493417,0.00043168,9]
[340855662,1729950632724,-30545.2751862,0.00043168,9]
[340855663,1729950632734,-254.40750037,0.00043168,2]
[340855664,1729950632743,-24539.12232739,0.00043178,2]
[340855665,1729950632755,-3205.15903707,0.00043178,2]
[340855666,1729950632767,-1610.90777798,0.00043178,2]
[340855667,1729950632779,-799.05,0.00043178,2]
[340855668,1729950632790,-1235.35346792,0.00043178,2]
[340855669,1729950632802,-3897.67600053,0.00043178,2]
[340855670,1729950632815,-75990.70039705,0.00043178,2]
[340855671,1729950632827,-2821.5901609,0.00043178,2]
[340855672,1729950632838,-2705.49053353,0.00043178,2]
[340855674,1729950638047,-2381.46955,0.00040038,2]
[340855676,1729950638059,-559.12249875,0.00040038,2]
[340855678,1729950638140,-3449.06688113,0.00040038,2]
[340855679,1729950638152,-5200.4432683,0.00040038,2]
[340855680,1729950638163,-981.22870002,0.00040038,2]
[340855681,1729950638184,-13607.9433018,0.00040038,2]
[340855682,1729950638194,-55449.60805449,0.00043178,2]
[340855683,1729950638205,-69294.93107228,0.00043178,2]
[340855684,1729950638216,-2510.72,0.00043178,2]
[340855685,1729950638374,-939.69117086,0.00043178,2]
[340855686,1729950638384,-353.139438,0.000432,54]
[340855687,1729950638394,-173.87190492,0.00043204,10]
[340855688,1729950638406,-4363.61074088,0.00043238,9]
[340855689,1729950638416,-4363.61074088,0.00043248,9]
[340855690,1729950638426,-9725.95947334,0.00043249,9]
[340855691,1729950638438,-4363.61074088,0.00043249,9]
[340855692,1729950638448,-9725.95947334,0.00043258,9]
[340855693,1729950638458,-8727.22148176,0.00043258,9]
[340855694,1729950638467,-4363.61074088,0.00043258,9]
[340855695,1729950638478,-4862.97973667,0.00043259,9]
[340855696,1729950638490,-4862.97973667,0.0004326,9]
[340855697,1729950638499,-4363.61074088,0.0004326,9]
[340855698,1729950638508,-9725.95947334,0.00043268,9]
[340855699,1729950638517,-8727.22148176,0.00043268,9]
[340855700,1729950638527,-9725.95947334,0.00043269,9]
[340855701,1729950638537,-4862.97973667,0.00043269,9]
[340855702,1729950638547,-4363.61074088,0.00043269,9]
[340855703,1729950638557,-4862.97973667,0.0004327,9]
[340855704,1729950638566,-4363.61074088,0.0004327,9]
[340855705,1729950638575,-158.20942065,0.00043273,7]
[340855706,1729950638584,-500.0,0.00043273,10]
[340855707,1729950638593,-150.0,0.00043277,120]
[340855708,1729950638603,-18731.60165463,0.00043278,30]
[340855709,1729950638612,-4363.61074088,0.00043278,9]
[340855710,1729950638622,-10854.3000371,0.00043279,2]
[340855711,1729950638631,-1034.0000623,0.00043279,2]
[340855712,1729950638640,-1315.2835024,0.00043279,2]
[340855713,1729950638649,-1036.72899586,0.0004328,2]
[340855714,1729950638659,-8727.22148176,0.0004328,9]
[340855715,1729950638668,-4363.61074088,0.00043283,9]
[340855716,1729950638677,-1295.0,0.0004329,120]
[340855717,1729950638686,-17454.4429635,0.0004329,9]
[340855718,1729950638695,-8727.22148176,0.00043293,9]
[340855719,1729950638704,-8727.22148176,0.00043298,9]
[340855720,1729950638713,-404.83893456,0.00043299,31]
[340855721,1729950638722,-1733.63,0.000433,30]
[340855722,1729950638732,-33635.54,0.000433,30]
[340855723,1729950638741,-10993.88962209,0.00043303,18]
[340855724,1729950638752,-10000.0,0.00043308,30]
[340855725,1729950638761,-6379.0,0.00043308,30]
[340855726,1729950638770,-1083.4542525,0.00043315,2]
[340855727,1729950638779,-1378.1909265,0.00043315,2]
[340855728,1729950638788,-219.87779244,0.00043315,18]
[340855729,1729950638798,-191.586426,0.00043343,14]
[340855730,1729950638809,-151.0,0.00043343,14]
[340855731,1729950638818,-151.0,0.00043343,14]
[340855732,1729950638828,-151.0,0.00043343,14]
[340855733,1729950638837,-223.153046,0.00043343,14]
[340855734,1729950638846,-223.153046,0.00043343,14]
[340855735,1729950638856,-226.895858,0.00043343,14]
[340855736,1729950638866,-226.895858,0.00043343,14]
[340855737,1729950638875,-151.0,0.00043343,7]
[340855738,1729950638884,-151.0,0.00043343,14]
[340855739,1729950638894,-151.0,0.00043343,14]
[340855740,1729950638903,-151.0,0.00043343,14]
[340855741,1729950638913,-151.0,0.00043343,14]
[340855742,1729950638922,-133634.81875126,0.00043343,2]
[340855743,1729950638932,-30584.18112351,0.00043343,2]
[340855744,1729950638941,-1560.45593969,0.00043343,2]
[340855745,1729950638950,-2000.0,0.00043343,2]
[340855746,1729950638960,-10814.10664818,0.00043343,2]
[340855747,1729950638969,-4924.2256841,0.00043343,2]
[340855748,1729950638979,-22629.49262352,0.00043343,2]
[340855749,1729950638988,-22933.47443406,0.00043343,2]
[340855750,1729950639094,-2168.69492443,0.00043343,2]
[340855751,1729950639104,-10050.90186945,0.00043343,7]
[340855752,1729950639114,-665150.98361984,0.00043343,2]
[340855753,1729950639130,-1345.81088568,0.00043343,2]
[340855754,1729950639141,-428.640303,0.00043343,2]
[340855770,1729950640035,-534.899999,0.00043343,2]
[340855772,1729950640047,-2600.09283515,0.00043343,2]
[340855774,1729950640058,-5701.05552985,0.00043343,2]
[340855777,1729950640070,-262.61055778,0.00043343,2]
[340855779,1729950640081,-268.21940464,0.00043343,2]
[340855787,1729950640145,-2223.40882565,0.00043343,2]
[340855789,1729950640157,-5374.99585608,0.00043343,2]
[340855791,1729950640166,-153.0,0.00043344,7]
[340855793,1729950640176,-150.0,0.00043414,120]
[340855795,1729950640186,-150.0,0.00043551,120]
[340855797,1729950640195,-4363.61074088,0.00043678,9]
[340855799,1729950640204,-150.0,0.00043688,120]
[340855801,1729950640213,-4065.0,0.00043729,3]
[340855803,1729950640223,-4363.61074088,0.0004373,9]
[340855805,1729950640232,-1000.0,0.0004374,2]
[340855807,1729950640241,-2158.0,0.00043762,3]
[340855809,1729950640250,-150.0,0.00043825,120]
[340855811,1729950640260,-592.0,0.0004383,120]
[340855812,1729950640269,-167.32,0.0004385,2]
[340855813,1729950640279,-150.0,0.00043962,120]
[340855814,1729950640289,-4363.61074088,0.0004397,9]
[340855816,1729950640298,-4363.61074088,0.0004399,9]
[340855817,1729950640307,-183.27,0.00043995,2]
[340855819,1729950640316,-3457.1,0.00044,4]
[340855821,1729950640325,-250.0,0.00044,10]
[340855823,1729950640335,-173.72402405,0.00044,120]
[340855825,1729950640345,-277.0,0.00044,60]
[340855827,1729950640354,-503.139438,0.00044,57]
[340855829,1729950640366,-1980.0,0.00044038,2]
[340855831,1729950640375,-1252.0,0.00044038,2]
[340855833,1729950640384,-150.0,0.00044038,2]
[340855835,1729950640393,-150.0,0.00044099,120]
[340855837,1729950640403,-188.41,0.00044115,2]
[340855839,1729950640412,-156.43,0.00044177,2]
[340855841,1729950640421,-150.0,0.00044236,120]
[340855843,1729950640431,-150.0,0.00044373,120]
[340855845,1729950640441,-4363.61074088,0.0004449,9]
[340855847,1729950640450,-1733.63,0.000445,30]
[340855849,1729950640460,-203.74428794,0.0004451,120]
[340855851,1729950640469,-1000.0,0.00044642,10]
[340855853,1729950640479,-966.73,0.00044666,2]
[340855855,1729950640488,-4363.61074088,0.00044751,9]
[340855857,1729950640497,-1441.0983506,0.00044769,2]
[340855858,1729950640506,-26181.6644453,0.0004477,9]
[340855861,1729950640515,-17454.4429635,0.0004478,9]
[340855864,1729950640524,-200236.00697776,0.000448,120]
[340855867,1729950640533,-151.0,0.000448,7]
[340855869,1729950640542,-151.0,0.000448,14]
[340855872,1729950640551,-151.0,0.000448,14]
[340855875,1729950640561,-151.0,0.000448,14]
[340855878,1729950640570,-151.0,0.000448,14]
[340855881,1729950640579,-151.818706,0.000448,14]
[340855884,1729950640588,-156.233835,0.000448,14]
[340855887,1729950640598,-151.0,0.000448,14]
[340855890,1729950640607,-290.646653,0.000448,14]
[340855892,1729950640617,-151.0,0.000448,14]
[340855896,1729950640627,-151.0,0.000448,14]
[340855899,1729950640637,-151.0,0.000448,14]
[340855902,1729950640647,-151.0,0.000448,14]
[340855904,1729950640656,-151.0,0.000448,14]
[340855907,1729950640665,-151.0,0.000448,14]
[340855910,1729950640675,-151.0,0.000448,14]
[340855913,1729950640684,-151.0,0.000448,14]
[340855915,1729950640693,-151.0,0.000448,14]
[340855917,1729950640702,-151.0,0.000448,14]
[340855919,1729950640712,-151.0,0.000448,7]
[340855921,1729950640721,-151.0,0.000448,7]
[340855923,1729950640730,-151.0,0.000448,14]
[340855925,1729950640739,-151.0,0.000448,14]
[340855927,1729950640748,-220.235759,0.000448,14]
[340855929,1729950640758,-151.0,0.000448,14]
[340855931,1729950640767,-153.762841,0.000448,14]
[340855933,1729950640776,-539.953584,0.000448,14]
[340855935,1729950640786,-151.0,0.000448,14]
[340855937,1729950640795,-539.953584,0.000448,14]
[340855939,1729950640805,-151.0,0.000448,14]
[340855941,1729950640814,-151.0,0.000448,14]
[340855943,1729950640823,-151.0,0.000448,14]
[340855945,1729950640832,-151.0,0.000448,14]
[340855947,1729950640841,-151.0,0.000448,14]
[340855949,1729950640850,-174.362886,0.000448,14]
[340855951,1729950640860,-174.362886,0.000448,14]
[340855953,1729950640869,-169.150758,0.000448,14]
[340855955,1729950640878,-169.150758,0.000448,14]
[340855957,1729950640888,-169.544829,0.000448,14]
[340855959,1729950640897,-169.544829,0.000448,14]
[340855961,1729950640906,-186.98732,0.000448,14]
[340855962,1729950640915,-186.98732,0.000448,14]
[340855963,1729950640924,-151.0,0.000448,14]
[340855964,1729950640933,-151.0,0.000448,14]
[340855966,1729950640943,-151.0,0.000448,14]
[340855968,1729950640952,-205.86521344,0.0004489,120]
[340855970,1729950640961,-500.0,0.00044932,30]
[340855972,1729950640971,-293.96520108,0.00045,120]
[340855975,1729950640980,-452.59,0.00045,30]
[340855976,1729950640990,-180.21086868,0.00045,120]
[340855978,1729950641000,-619.64003295,0.00045,120]
[340855981,1729950641010,-150.0,0.00045,10]
[340855982,1729950641022,-150.0,0.00045,85]
[340855984,1729950641031,-219.29,0.000451,2]
[340855986,1729950641039,-500.0,0.00045205,30]
[340855988,1729950641048,-151.45,0.00045205,2]
[340855991,1729950641059,-319.56255355,0.00045306,2]
[340855993,1729950641068,-500.0,0.00045479,30]
[340855995,1729950641077,-1733.63,0.000456,30]
[340855997,1729950641088,-500.0,0.00045753,30]
[340855999,1729950641097,-172.03,0.00045833,2]
[340856000,1729950641106,-234.0,0.00045961,10]
[340856001,1729950641118,-638.53,0.00045999,2]
[340856002,1729950641126,-250.0,0.00046,10]
[340856003,1729950641135,-150.0,0.00046,96]
[340856004,1729950641144,-500.0,0.00046027,30]
[340856005,1729950641154,-1000.0,0.00046082,2]
[340856006,1729950641163,-156.43,0.0004628,2]
[340856007,1729950641172,-500.0,0.00046301,30]
[340856008,1729950641182,-1500.0,0.0004648,2]
[340856009,1729950641192,-319.47138642,0.000465,120]
[340856010,1729950641201,-500.0,0.00046575,30]
[340856011,1729950641210,-602.47560254,0.00046646,10]
[340856012,1729950641219,-966.73,0.0004693,2]
[340856013,1729950641228,-159.11018283,0.00047,60]
[340856014,1729950641237,-203.48510959,0.00047,120]
[340856015,1729950641246,-150.0,0.00047,10]
[340856016,1729950641255,-200.0,0.00047,108]
[340856017,1729950641264,-167.32,0.00047036,2]
[340856018,1729950641274,-1980.0,0.00047038,2]
[340856019,1729950641283,-1252.0,0.00047038,2]
[340856020,1729950641292,-1132.9084427,0.00047084,2]
[340856021,1729950641301,-181.68807877,0.0004748,115]
[340856022,1729950641310,-21922.32860029,0.000475,2]
[340856023,1729950641319,-1733.63,0.000475,30]
[340856024,1729950641329,-223.153046,0.000475,14]
[340856025,1729950641338,-223.153046,0.000475,14]
[340856026,1729950641347,-226.895858,0.000475,14]
[340856027,1729950641356,-226.895858,0.000475,14]
[340856028,1729950641367,-151.0,0.000475,7]
[340856029,1729950641376,-151.0,0.000475,14]
[340856030,1729950641385,-151.0,0.000475,14]
[340856031,1729950641395,-319.56255355,0.00047534,2]
[340856032,1729950641404,-5174.98436827,0.000476,2]
[340856033,1729950641414,-250.0,0.00048,10]
[340856034,1729950641435,-188.41,0.00048125,2]
[340856035,1729950641445,-2000.0,0.00048219,30]
[340856036,1729950641454,-156.43,0.00048384,2]
[340856037,1729950641464,-2000.0,0.00048493,30]
[340856038,1729950641473,-183.27,0.00048663,2]
[340856039,1729950641483,-2000.0,0.00048767,30]
[340856040,1729950641492,-152.0,0.00048783,3]
[340856041,1729950641502,-174.2125,0.00048888,30]
[340856042,1729950641513,-719.28150279,0.00048999,60]
[340856043,1729950641522,-20815.87749817,0.00049,2]
[340856044,1729950641532,-150.0,0.00049,10]
[340856045,1729950641541,-2000.0,0.00049041,30]
[340856046,1729950641551,-966.73,0.00049194,2]
[340856047,1729950641560,-673.69301552,0.00049219,2]
[340856048,1729950641570,-1733.63,0.000493,30]
[340856049,1729950641579,-3000.0,0.000493,2]
[340856050,1729950641588,-2000.0,0.00049315,30]
[340856051,1729950641598,-193.430116,0.00049315,120]
[340856052,1729950641607,-193.430116,0.00049315,120]
[340856053,1729950641617,-174.476946,0.00049315,120]
[340856054,1729950641626,-174.476946,0.00049315,120]
[340856055,1729950641636,-151.45,0.00049315,2]
[340856056,1729950641645,-222.89,0.00049315,2]
[340856057,1729950641655,-150.0,0.00049315,2]
[340856058,1729950641664,-150.0,0.00049315,2]
[340856059,1729950641673,-150.0,0.00049315,2]
[340856060,1729950641683,-172.03,0.00049327,2]
[340856061,1729950641692,-156.32397338,0.000495,120]
[340856062,1729950641701,-1000.0,0.00049637,4]
[340856063,1729950641711,-319.56255355,0.00049761,2]
[340856064,1729950641721,-169.67,0.00049858,2]
[340856065,1729950641730,-323.4023221,0.000499,2]
[340856066,1729950641739,-5991.88796224,0.000499,2]
[340856067,1729950641749,-269.96122299,0.000499,2]
[340856068,1729950641758,-1603.73118156,0.000499,2]
[340856069,1729950641768,-11373.4398687,0.00049966,2]
[340856070,1729950641777,-13965.08652628,0.0005,60]
[340856071,1729950641792,-8118.28038569,0.0005,60]
[340856072,1729950641911,-12567.09575689,0.0005,64]
[340856073,1729950641927,-42782.39571607,0.0005,64]